bitfinex-derivatives/quotes_SOLF0:USTF0_20250516
["timestamp","ask_amount","ask_price","bid_price","bid_amount"]
[1747404721176,72.8,172.39,172.31,1.864]
[1747404721377,5.7994,172.36,172.32,5.8006]
[1747404721576,73.2,172.38,172.31,1.864]
[1747404721976,73.2,172.38,172.31,7.6648]
[1747404722174,73.2,172.38,172.29,1.8403]
[1747404722380,73.2,172.38,172.25,73.2]
[1747404722679,73.2,172.38,172.22,5.5613]
[1747404722877,90.05838255,172.38,172.22,5.5613]
[1747404723080,73.2,172.38,172.22,5.5613]
[1747404724179,5.8003,172.34,172.28,5.8018]
[1747404724373,145.56,172.33,172.22,5.5613]
[1747404724682,5.8023,172.28,172.23,5.8035]
[1747404724876,72.78,172.27,172.22,3.7043]
[1747404725277,72.78,172.27,172.24,5.8033]
[1747404725676,72.78,172.27,172.22,3.7043]
[1747404725980,145.58,172.27,172.16,72.8]
[1747404727882,145.58,172.27,172.24,5.8033]
[1747404728182,145.58,172.27,172.16,72.8]
[1747404729580,5.8034,172.24,172.2,5.8047]
[1747404729881,145.58,172.27,172.16,72.8]
[1747404730083,16.85838255,172.31,172.16,72.8]
[1747404730279,145.58,172.3,172.16,72.8]
[1747404730678,5.8018,172.29,172.25,5.8028]
[1747404730977,145.58,172.3,172.16,72.8]
[1747404731179,5.802,172.29,172.25,5.8028]
[1747404731380,145.58,172.3,172.16,72.8]
[1747404731580,145.58,172.3,172.17,72.74]
[1747404731779,145.58,172.3,172.27,5.8021]
[1747404731978,145.58,172.3,172.17,72.74]
[1747404732181,5.8019,172.29,172.25,5.8028]
[1747404732381,145.58,172.3,172.17,72.74]
[1747404733684,72.82,172.3,172.19,16.85838255]
[1747404733884,72.84,172.33,172.19,16.85838255]
[1747404734085,72.74,172.31,172.29,5.8015]
[1747404734481,72.72,172.41,172.29,72.84]
[1747404734783,72.72,172.41,172.24,22.54228255]
[1747404734978,16.85838255,172.4,172.3,5.8014]
[1747404735385,16.85838255,172.4,172.25,72.84]
[1747404735386,16.85838255,172.4,172.24,78.5239]
[1747404736091,5.8009,172.32,172.28,5.802]
[1747404736381,72.72,172.31,172.24,78.5239]
[1747404736586,72.72,172.31,172.3,5.8014]
[1747404736886,72.72,172.31,172.24,78.5239]
[1747404737085,72.72,172.31,172.3,5.8014]
[1747404737591,72.72,172.31,172.24,5.6839]
[1747404738688,5.8016,172.3,172.26,5.8024]
[1747404738988,72.72,172.31,172.24,5.6839]
[1747404739291,78.5212,172.31,172.24,5.6839]
[1747404740192,72.72,172.31,172.24,5.6839]
[1747404740988,72.72,172.31,172.29,5.8014]
[1747404741890,72.72,172.31,172.24,5.6839]
[1747404742093,5.8018,172.29,172.23,72.84]
[1747404742290,72.72,172.31,172.23,72.84]
[1747404742991,72.72,172.31,172.26,5.8025]
[1747404743287,5.802,172.29,172.25,5.8028]
[1747404743492,5.802,172.29,172.2,22.57288255]
[1747404743791,5.8022,172.28,172.24,5.8033]
[1747404744193,72.72,172.31,172.2,5.7145]
[1747404744390,5.803,172.26,172.2,5.7145]
[1747404744586,72.62,172.26,172.18,72.84]
[1747404745392,5.8032,172.25,172.18,72.84]
[1747404745794,78.4228,172.26,172.22,5.8039]
[1747404745996,72.62,172.26,172.22,5.8039]
[1747404746293,5.8035,172.24,172.17,72.86]
[1747404746493,72.62,172.26,172.17,72.86]
[1747404746798,5.8034,172.24,172.21,5.8042]
[1747404747092,72.62,172.26,172.13,72.86]
[1747404747996,5.8057,172.18,172.15,5.8062]
[1747404748194,3.7619,172.27,172.15,5.8062]
[1747404748195,72.6,172.19,172.15,5.8062]
[1747404748398,72.6,172.19,172.13,72.86]
[1747404748596,72.86,172.21,172.13,72.86]
[1747404748597,72.58,172.23,172.13,89.71838255]
[1747404748894,72.58,172.23,172.14,1.8687]
[1747404749887,72.58,172.23,172.22,5.8041]
[1747404750699,72.86,172.26,172.24,5.8033]
[1747404750898,72.86,172.26,172.18,72.86]
[1747404751194,72.56,172.28,172.19,3.779]
[1747404751394,72.56,172.29,172.26,5.8027]
[1747404752101,78.362,172.29,172.26,5.8027]
[1747404752301,72.56,172.29,172.19,3.779]
[1747404752695,72.56,172.29,172.24,5.8033]
[1747404752895,72.56,172.29,172.19,3.779]
[1747404753095,72.54,172.29,172.19,3.779]
[1747404753597,501.52,172.35,172.19,3.779]
[1747404753901,72.54,172.33,172.21,16.85838255]
[1747404754103,72.54,172.33,172.22,74.434]
[1747404754308,72.54,172.33,172.23,72.86]
[1747404754498,72.54,172.33,172.32,5.8007]
[1747404755097,72.86,172.35,172.33,5.8003]
[1747404755404,72.52,172.37,172.28,72.52]
[1747404755597,72.52,172.37,172.29,76.2134]
[1747404756396,72.52,172.39,172.29,76.2134]
[1747404756598,73.6602274,172.38,172.32,5.8005]
[1747404756803,73.6602274,172.38,172.29,76.2134]
[1747404757000,5.7993,172.37,172.29,76.2134]
[1747404757304,73.6602274,172.38,172.33,5.8002]
[1747404757605,5.7992,172.37,172.33,5.8002]
[1747404757803,73.6602274,172.38,172.33,5.8002]
[1747404758104,5.7996,172.36,172.29,76.2134]
[1747404758305,5.7996,172.36,172.32,5.8005]
[1747404758902,5.7992,172.37,172.29,76.2134]
[1747404759107,73.6602274,172.38,172.29,76.2134]
[1747404759108,73.6202274,172.38,172.29,76.2134]
[1747404759305,1.1602274,172.38,172.3,1.98]
[1747404759505,72.46,172.42,172.3,1.98]
[1747404759905,72.46,172.42,172.37,5.7988]
[1747404760105,72.46,172.42,172.34,72.5]
[1747404760410,72.46,172.42,172.38,5.7984]
[1747404760912,78.2575,172.42,172.38,5.7984]
[1747404761210,72.46,172.42,172.37,5.7989]
[1747404761411,72.46,172.42,172.34,72.5]
[1747404761412,5.7981,172.4,172.34,72.5]
[1747404761612,72.46,172.42,172.37,5.7989]
[1747404761811,72.46,172.42,172.34,72.5]
[1747404762110,5.7978,172.41,172.34,72.5]
[1747404762610,78.2574,172.42,172.34,72.5]
[1747404763512,72.46,172.42,172.39,5.7984]
[1747404763811,78.2971,172.43,172.34,72.5]
[1747404763812,72.4,172.45,172.34,72.5]
[1747404764011,5.7974,172.42,172.34,72.5]
[1747404764213,72.4,172.45,172.34,72.5]
[1747404764510,72.4,172.45,172.34,72.48]
[1747404764707,72.4,172.45,172.36,5.7994]
[1747404764910,72.4,172.45,172.34,72.48]
[1747404765612,5.7989,172.38,172.34,78.2797]
[1747404765809,5.7989,172.38,172.34,72.48]
[1747404766006,72.36,172.4,172.34,72.48]
[1747404766309,72.36,172.44,172.34,72.48]
[1747404766515,72.36,172.45,172.34,72.48]
[1747404766714,5.7974,172.42,172.39,5.7982]
[1747404766909,72.36,172.45,172.34,72.48]
[1747404767117,144.82,172.47,172.34,72.48]
[1747404767317,144.82,172.47,172.42,5.7973]
[1747404767508,72.34,172.47,172.39,72.48]
[1747404767704,5.7964,172.45,172.42,5.7971]
[1747404767907,72.34,172.47,172.39,72.48]
[1747404768304,72.34,172.47,172.43,5.7968]
[1747404768509,573.88,172.51,172.4,5.7731]
[1747404768703,5.7963,172.46,172.42,5.7973]
[1747404768916,72.32,172.5,172.26,16.85838255]
[1747404769114,72.32,172.5,172.36,2.0]
[1747404769609,72.32,172.5,172.36,74.46]
[1747404769805,5.7976,172.42,172.38,5.7985]
[1747404770010,72.3,172.44,172.38,5.7985]
[1747404770205,72.3,172.44,172.36,72.46]
[1747404770404,72.3,172.44,172.37,5.799]
[1747404770607,72.3,172.44,172.36,72.46]
[1747404770916,5.7971,172.43,172.39,5.7981]
[1747404771514,72.3,172.44,172.36,72.46]
[1747404772115,5.7985,172.39,172.36,78.2593]
[1747404772319,72.3,172.44,172.36,72.46]
[1747404772817,5.7975,172.42,172.36,72.46]
[1747404773018,72.3,172.44,172.36,72.46]
[1747404773216,5.7971,172.43,172.4,5.7978]
[1747404773816,72.3,172.44,172.36,72.46]
[1747404774221,5.7977,172.42,172.38,5.7985]
[1747404774420,5.7977,172.42,172.36,72.46]
[1747404774719,72.24,172.44,172.36,72.46]
[1747404774922,72.46,172.46,172.36,72.46]
[1747404775219,72.24,172.46,172.36,72.46]
[1747404775822,5.7973,172.43,172.34,18.74138255]
[1747404776014,5.7973,172.43,172.35,72.46]
[1747404776419,5.7973,172.43,172.4,5.7977]
[1747404776619,72.22,172.45,172.35,72.46]
[1747404776922,72.22,172.45,172.41,5.7974]
[1747404777115,78.0166,172.45,172.35,72.46]
[1747404777317,72.22,172.45,172.35,72.46]
[1747404777619,78.0155,172.48,172.35,72.46]
[1747404777811,72.22,172.48,172.35,72.46]
[1747404778513,72.46,172.49,172.46,5.7958]
[1747404778717,72.2,172.5,172.41,72.46]
[1747404778915,72.2,172.5,172.42,78.1238]
[1747404779120,77.9948,172.5,172.47,5.7955]
[1747404779320,72.2,172.5,172.42,78.1238]
[1747404779521,72.18,172.52,172.42,78.1238]
[1747404780220,5.7946,172.51,172.48,5.7953]
[1747404780626,144.62,172.53,172.42,78.1238]
[1747404781222,5.7948,172.5,172.47,5.7955]
[1747404782127,5.7951,172.49,172.46,5.7959]
[1747404782426,144.62,172.53,172.42,78.1238]
[1747404782926,5.7945,172.51,172.48,5.7952]
[1747404783827,5.7948,172.5,172.47,5.7957]
[1747404784127,144.62,172.53,172.42,78.1238]
[1747404784325,5.7956,172.48,172.45,5.7962]
[1747404784730,144.62,172.53,172.42,78.1238]
[1747404784921,5.7944,172.51,172.48,5.7952]
[1747404785228,144.62,172.53,172.42,78.1238]
[1747404785931,5.7952,172.49,172.45,5.7963]
[1747404786132,144.62,172.53,172.42,78.1238]
[1747404786428,5.7956,172.48,172.42,78.1238]
[1747404786632,144.62,172.53,172.42,78.1238]
[1747404787031,5.7956,172.48,172.45,5.7962]
[1747404787433,144.62,172.53,172.42,78.1238]
[1747404787636,5.7953,172.49,172.45,5.7963]
[1747404787931,5.7953,172.49,172.42,78.1238]
[1747404788133,144.62,172.53,172.42,78.1238]
[1747404788330,5.7942,172.52,172.42,78.1238]
[1747404788831,5.7942,172.52,172.48,5.795]
[1747404789032,144.62,172.53,172.42,78.1238]
[1747404789236,144.62,172.53,172.44,5.7966]
[1747404790129,5.7962,172.46,172.43,5.797]
[1747404790431,1.8113,172.52,172.42,5.6638]
[1747404791138,1.8113,172.52,172.41,72.08]
[1747404791438,1.8113,172.52,172.37,72.08]
[1747404791636,1.8113,172.52,172.39,5.7981]
[1747404791825,1.8113,172.52,172.37,72.08]
[1747404792139,16.85838255,172.49,172.37,72.08]
[1747404792436,5.797,172.44,172.37,72.08]
[1747404792637,144.1,172.48,172.37,72.08]
[1747404792826,145.976,172.48,172.37,72.08]
[1747404794139,5.7969,172.44,172.37,72.08]
[1747404794443,145.976,172.48,172.42,5.7973]
[1747404794641,5.7959,172.47,172.37,72.08]
[1747404794841,144.08,172.48,172.43,5.7968]
[1747404795141,5.7958,172.47,172.38,71.98]
[1747404795440,5.7958,172.47,172.44,5.7967]
[1747404795941,5.7961,172.46,172.44,5.7967]
[1747404796442,5.7961,172.46,172.43,5.7969]
[1747404796638,5.7965,172.45,172.38,71.98]
[1747404796942,144.08,172.48,172.4,5.7979]
[1747404797142,5.7973,172.43,172.4,5.7979]
[1747404797441,144.08,172.48,172.4,5.7979]
[1747404797643,144.08,172.48,172.37,72.08]
[1747404798039,5.7966,172.45,172.37,72.08]
[1747404798241,144.08,172.48,172.37,72.08]
[1747404799043,5.7975,172.42,172.37,72.08]
[1747404799341,5.7975,172.42,172.39,5.7981]
[1747404799544,144.08,172.48,172.37,72.08]
[1747404799845,144.08,172.48,172.38,5.7985]
[1747404800039,144.08,172.48,172.37,72.08]
[1747404800246,5.7966,172.45,172.42,5.7972]
[1747404800437,144.08,172.48,172.37,72.08]
[1747404800839,144.02,172.48,172.38,71.94]
[1747404801348,5.7962,172.46,172.43,5.7969]
[1747404801550,144.02,172.48,172.38,71.94]
[1747404801951,5.7964,172.45,172.42,5.7972]
[1747404802248,144.02,172.48,172.38,71.94]
[1747404802444,5.7959,172.47,172.44,5.7965]
[1747404802644,144.02,172.48,172.38,71.94]
[1747404803046,71.9,172.5,172.38,71.94]
[1747404803254,71.9,172.5,172.39,16.85838255]
[1747404803740,71.9,172.5,172.4,3.867]
[1747404803944,71.9,172.5,172.41,1.8974]
[1747404804149,71.9,172.5,172.42,72.1]
[1747404804553,77.6949,172.5,172.47,5.7954]
[1747404805756,77.6949,172.5,172.48,5.7954]
[1747404805955,71.9,172.5,172.42,72.1]
[1747404806155,77.8943,172.52,172.42,72.1]
[1747404806350,72.1,172.52,172.42,72.1]
[1747404806552,77.6538,172.53,172.43,71.86]
[1747404806752,5.7938,172.53,172.43,71.86]
[1747404807756,5.7943,172.52,172.48,5.7952]
[1747404807956,71.86,172.54,172.42,72.1]
[1747404808554,71.86,172.54,172.45,5.7962]
[1747404808855,71.86,172.54,172.42,72.1]
[1747404809154,5.7961,172.46,172.43,5.7969]
[1747404809355,71.82,172.49,172.42,72.1]
[1747404809557,5.796,172.46,172.42,72.1]
[1747404810160,5.7958,172.47,172.42,72.1]
[1747404810453,71.82,172.49,172.42,72.1]
[1747404811857,71.82,172.49,172.47,5.7954]
[1747404812258,72.08,172.52,172.42,72.1]
[1747404812456,5.7951,172.49,172.46,5.7958]
[1747404812651,72.08,172.52,172.42,72.1]
[1747404813055,5.7945,172.51,172.42,72.1]
[1747404813360,72.08,172.52,172.42,72.1]
[1747404813555,77.8742,172.52,172.48,5.7951]
[1747404813753,71.76,172.55,172.44,71.76]
[1747404814064,5.7928,172.56,172.44,71.76]
[1747404814662,5.7928,172.56,172.53,5.7936]
[1747404815154,5.7924,172.57,172.54,5.7931]
[1747404816563,71.74,172.58,172.56,5.7926]
[1747404816766,71.72,172.59,172.5,5.5788]
[1747404816963,143.8,172.6,172.5,5.5788]
[1747404817262,5.7925,172.57,172.54,5.7931]
[1747404817862,5.7921,172.58,172.55,5.793]
[1747404818365,5.7924,172.57,172.54,5.7932]
[1747404818559,143.8,172.6,172.5,5.5788]
[1747404818963,5.7925,172.57,172.54,5.7933]
[1747404819154,143.8,172.6,172.5,5.5788]
[1747404820663,5.7923,172.57,172.54,5.7933]
[1747404821362,5.7923,172.57,172.55,5.793]
[1747404822068,5.7923,172.57,172.54,5.7932]
[1747404823269,5.7923,172.57,172.55,5.793]
[1747404823868,5.7923,172.57,172.54,5.7933]
[1747404824170,5.7923,172.57,172.5,5.5788]
[1747404824467,71.62,172.61,172.5,5.5788]
[1747404825169,71.62,172.61,172.56,5.7927]
[1747404825868,5.7918,172.59,172.56,5.7927]
[1747404826264,75.5541,172.64,172.54,71.72]
[1747404826568,71.58,172.66,172.54,143.3]
[1747404826762,71.58,172.67,172.54,143.3]
[1747404827071,77.3692,172.67,172.55,11.5861]
[1747404827365,71.58,172.67,172.56,10.53023153]
[1747404827569,149.0889,172.68,172.56,10.53023153]
[1747404827768,143.3,172.68,172.57,5.73]
[1747404828768,5.7893,172.67,172.64,5.79]
[1747404828967,143.26,172.68,172.6,71.7]
[1747404829176,71.54,172.68,172.6,71.7]
[1747404829469,77.3289,172.68,172.6,71.7]
[1747404829670,71.54,172.68,172.6,71.7]
[1747404830365,71.7,172.72,172.6,71.7]
[1747404830564,71.52,172.71,172.68,5.7886]
[1747404830768,71.52,172.71,172.6,71.7]
[1747404831064,71.52,172.74,172.6,71.7]
[1747404831467,71.52,172.74,172.72,5.7871]
[1747404831972,71.52,172.74,172.71,5.7875]
[1747404832173,71.52,172.74,172.67,71.7]
[1747404832474,77.3069,172.74,172.7,5.7878]
[1747404832973,71.52,172.74,172.7,5.7878]
[1747404833177,71.52,172.74,172.67,71.7]
[1747404833771,5.788,172.7,172.67,5.7888]
[1747404833970,71.52,172.74,172.63,71.68]
[1747404834277,5.7882,172.7,172.66,5.7891]
[1747404834578,71.52,172.74,172.66,5.7891]
[1747404834779,5.7885,172.69,172.66,5.7891]
[1747404835076,71.52,172.74,172.67,5.789]
[1747404835277,71.52,172.74,172.63,71.68]
[1747404835575,5.7875,172.72,172.64,3.6322]
[1747404835777,5.7875,172.72,172.69,5.7881]
[1747404836077,71.42,172.73,172.64,3.6322]
[1747404836278,71.42,172.73,172.69,5.7882]
[1747404836578,5.7877,172.71,172.69,5.7882]
[1747404836877,71.42,172.73,172.7,5.7878]
[1747404837278,71.42,172.73,172.64,3.6322]
[1747404838278,71.38,172.75,172.64,3.6322]
[1747404838472,71.38,172.75,172.71,5.7876]
[1747404838672,71.7,172.77,172.64,3.6322]
[1747404838873,71.38,172.76,172.64,3.6322]
[1747404839377,5.7865,172.75,172.64,3.6322]
[1747404839577,5.7865,172.75,172.71,5.7874]
[1747404839778,71.38,172.76,172.65,71.36]
[1747404840478,5.7868,172.74,172.65,71.36]
[1747404840780,71.38,172.76,172.65,71.36]
[1747404840977,71.38,172.76,172.64,3.6322]
[1747404841381,71.38,172.76,172.68,5.7884]
[1747404841581,71.38,172.76,172.64,3.6322]
[1747404841881,71.38,172.76,172.71,5.7876]
[1747404842475,71.38,172.76,172.64,3.6322]
[1747404842981,5.7869,172.74,172.64,3.6322]
[1747404843379,5.788,172.7,172.63,71.66]
[1747404843575,71.3,172.7,172.63,71.66]
[1747404844081,71.3,172.7,172.55,11.5858]
[1747404844382,5.7902,172.64,172.56,71.66]
[1747404844586,71.28,172.65,172.59,5.7914]
[1747404844983,5.7901,172.64,172.56,71.66]
[1747404845288,71.28,172.65,172.56,71.66]
[1747404845476,5.7904,172.63,172.56,71.66]
[1747404845783,71.28,172.65,172.58,5.7918]
[1747404845973,71.28,172.65,172.56,71.66]
[1747404846179,71.28,172.65,172.6,5.7913]
[1747404846584,5.7904,172.63,172.56,71.66]
[1747404847586,71.28,172.65,172.56,71.66]
[1747404847986,5.7901,172.64,172.56,71.66]
[1747404848685,71.28,172.65,172.56,71.66]
[1747404849188,5.7907,172.62,172.56,71.66]
[1747404849487,71.28,172.65,172.56,71.66]
[1747404849787,5.7913,172.61,172.57,5.7921]
[1747404849990,5.7913,172.61,172.56,71.66]
[1747404850286,5.7908,172.62,172.58,5.7918]
[1747404850486,71.28,172.65,172.56,71.66]
[1747404850886,5.79,172.64,172.56,71.66]
[1747404851288,71.28,172.65,172.56,71.66]
[1747404851490,77.0699,172.65,172.56,71.66]
[1747404851784,71.26,172.67,172.56,71.66]
[1747404851983,71.26,172.67,172.56,142.86]
[1747404852190,142.46,172.67,172.56,142.86]
[1747404852485,3.7372,172.69,172.56,142.86]
[1747404852689,71.2,172.68,172.56,142.86]
[1747404852882,71.2,172.68,172.65,5.7894]
[1747404853083,71.2,172.68,172.56,142.86]
[1747404853594,71.28,172.71,172.67,5.789]
[1747404853792,71.18,172.7,172.62,71.28]
[1747404854092,71.18,172.7,172.67,5.7888]
[1747404854289,3.9066,172.79,172.62,71.28]
[1747404854485,5.7861,172.76,172.72,5.7872]
[1747404855586,71.16,172.76,172.73,5.7868]
[1747404855992,71.16,172.76,172.72,5.7872]
[1747404856194,76.9461,172.76,172.72,5.7872]
[1747404856799,71.28,172.78,172.68,71.28]
[1747404856996,71.14,172.77,172.68,71.28]
[1747404857502,71.12,172.77,172.68,71.28]
[1747404857893,71.12,172.77,172.74,5.7863]
[1747404858505,76.9057,172.77,172.74,5.7863]
[1747404858795,71.12,172.77,172.75,5.7863]
[1747404858992,71.28,172.78,172.75,5.7863]
[1747404858993,142.38,172.78,172.75,5.7863]
[1747404859400,148.1655,172.78,172.75,5.7863]
[1747404859597,148.1455,172.78,172.75,5.7863]
[1747404859998,71.28,172.78,172.77,5.7856]
[1747404860194,141.99732603,172.8,172.68,71.28]
[1747404860195,207.29252603,172.8,172.68,71.28]
[1747404861003,136.21252603,172.8,172.68,71.28]
[1747404861201,5.7852,172.79,172.68,71.28]
[1747404861390,207.27252603,172.8,172.68,71.28]
[1747404861701,5.7854,172.78,172.74,5.7864]
[1747404862004,5.7854,172.78,172.68,71.28]
[1747404862199,207.27252603,172.8,172.68,71.28]
[1747404862399,207.27252603,172.8,172.73,5.7868]
[1747404862606,207.27252603,172.8,172.68,71.28]
[1747404862901,5.7854,172.78,172.75,5.7861]
[1747404863101,5.7854,172.78,172.68,71.28]
[1747404863300,207.27252603,172.8,172.68,71.28]
[1747404863605,5.7857,172.77,172.68,71.28]
[1747404863804,207.27252603,172.8,172.68,71.28]
[1747404864001,207.27252603,172.8,172.75,5.7861]
[1747404864304,207.27252603,172.8,172.68,71.28]
[1747404864603,5.7859,172.77,172.73,5.7869]
[1747404864805,224.11894786,172.8,172.67,5.8557]
[1747404865003,224.11894786,172.8,172.67,77.1157]
[1747404865204,5.7865,172.75,172.67,77.1157]
[1747404865403,224.11894786,172.8,172.67,77.1157]
[1747404865701,5.7862,172.76,172.72,5.787]
[1747404866005,5.7862,172.76,172.63,500.38]
[1747404866006,224.11894786,172.8,172.63,500.38]
[1747404866199,16.84642183,172.76,172.63,500.38]
[1747404866394,70.98,172.75,172.64,71.26]
[1747404866598,72.9703,172.75,172.64,71.26]
[1747404866813,5.7877,172.71,172.67,5.7887]
[1747404867304,5.7877,172.71,172.64,71.26]
[1747404867605,5.7877,172.71,172.68,5.7884]
[1747404868308,5.7872,172.73,172.64,71.26]
[1747404868899,5.7868,172.74,172.71,5.7873]
[1747404869408,70.92,172.75,172.65,5.5103]
[1747404869907,76.7065,172.75,172.72,5.7871]
[1747404871105,3.718,172.79,172.65,17.0892]
[1747404871303,70.9,172.77,172.65,17.0892]
[1747404871497,207.47252603,172.8,172.65,5.5103]
[1747404871702,70.9,172.79,172.66,11.5787]
[1747404871902,70.9,172.79,172.67,70.9]
[1747404873109,76.685,172.79,172.76,5.7858]
[1747404874716,5.7853,172.78,172.75,5.7862]
[1747404875212,76.6851,172.79,172.76,5.7859]
[1747404875503,70.84,172.78,172.76,5.7859]
[1747404876211,70.84,172.78,172.77,5.7856]
[1747404876411,70.84,172.78,172.71,71.24]
[1747404876910,70.84,172.78,172.77,5.7856]
[1747404878115,213.25732603,172.8,172.77,5.7856]
[1747404878318,284.05732603,172.8,172.77,5.7856]
[1747404878607,278.27252603,172.8,172.71,71.24]
[1747404879007,5.7855,172.78,172.75,5.7861]
[1747404879205,278.27252603,172.8,172.71,71.24]
[1747404879616,5.7858,172.77,172.74,5.7865]
[1747404880017,278.27252603,172.8,172.74,5.7865]
[1747404880314,10.51580161,172.78,172.65,5.5103]
[1747404880613,10.51580161,172.78,172.66,70.82]
[1747404881614,10.51580161,172.75,172.66,70.82]
[1747404881918,70.74,172.74,172.66,70.82]
[1747404882517,5.7879,172.71,172.68,5.7884]
[1747404883915,5.7883,172.69,172.65,5.5103]
[1747404884115,70.74,172.74,172.65,1.8477]
[1747404884414,5.7881,172.7,172.67,5.7888]
[1747404884615,70.74,172.74,172.63,571.22]
[1747404884813,70.74,172.74,172.63,70.84]
[1747404885117,10.51580161,172.72,172.57,1.8821]
[1747404885315,1.9103,172.71,172.58,70.84]
[1747404885714,1.9103,172.71,172.64,5.7898]
[1747404885715,5.7891,172.67,172.64,5.7898]
[1747404885915,70.7,172.69,172.59,1.8378]
[1747404886319,141.54,172.69,172.59,1.8378]
[1747404887021,5.7893,172.66,172.59,1.8378]
[1747404887318,141.54,172.69,172.59,1.8378]
[1747404887619,5.7901,172.64,172.59,1.8378]
[1747404887821,141.54,172.69,172.59,1.8378]
[1747404888114,141.54,172.69,172.59,5.7916]
[1747404888321,152.05580161,172.69,172.58,70.84]
[1747404888523,152.05580161,172.69,172.6,5.7912]
[1747404888722,152.05580161,172.69,172.58,70.84]
[1747404889320,5.7909,172.62,172.58,70.84]
[1747404889621,70.66,172.63,172.61,5.7909]
[1747404891021,70.66,172.63,172.58,70.84]
[1747404891623,76.4504,172.63,172.6,5.7912]
[1747404892125,70.66,172.63,172.6,5.7912]
[1747404892512,70.66,172.63,172.59,5.7916]
[1747404893025,76.4504,172.63,172.58,70.84]
[1747404893218,70.66,172.63,172.54,572.9916]
[1747404893425,5.7915,172.6,172.54,572.9916]
[1747404893722,70.66,172.63,172.54,572.9916]
[1747404893922,70.66,172.63,172.56,10.51580161]
[1747404895021,70.66,172.63,172.62,5.7907]
[1747404897027,70.66,172.63,172.56,10.51580161]
[1747404897028,70.66,172.63,172.61,5.7909]
[1747404897327,70.66,172.63,172.56,10.51580161]
[1747404898626,76.4503,172.63,172.61,5.7907]
[1747404898927,70.66,172.63,172.56,10.51580161]
[1747404899427,76.4505,172.63,172.56,10.51580161]
[1747404899628,76.4505,172.63,172.6,5.7913]
[1747404900028,70.66,172.63,172.56,10.51580161]
[1747404900226,3.7716,172.71,172.59,10.51580161]
[1747404900528,5.789,172.67,172.59,81.39580161]
[1747404900829,70.88,172.69,172.63,5.7901]
[1747404901129,70.88,172.69,172.59,81.39580161]
[1747404901331,70.88,172.69,172.62,5.7906]
[1747404901629,5.7894,172.66,172.59,81.39580161]
[1747404901829,5.7894,172.66,172.63,5.7901]
[1747404902430,70.88,172.69,172.61,5.7908]
[1747404902728,70.88,172.69,172.59,81.39580161]
[1747404902729,70.88,172.69,172.54,504.1056]
[1747404902928,70.88,172.69,172.57,5.7921]